bitfinex-derivatives/quotes_SOLF0:USTF0_20250321
["timestamp","ask_amount","ask_price","bid_price","bid_amount"]
[1742560871647,38.7868,125.9,125.83,94.87249573]
[1742560871850,0.05815529,125.89,125.83,94.87249573]
[1742560872047,0.05815529,125.89,125.83,51.21027875]
[1742560872247,0.05815529,125.89,125.87,7.9482]
[1742560873852,0.05815529,125.89,125.86,7.9487]
[1742560874249,0.05815529,125.89,125.83,51.21027875]
[1742560874446,0.05815529,125.89,125.87,7.9482]
[1742560875052,0.05815529,125.89,125.88,7.9478]
[1742560876550,0.05815529,125.89,125.87,7.9482]
[1742560877153,0.05815529,125.89,125.88,7.9478]
[1742560877346,0.05815529,125.89,125.85,20.43027875]
[1742560878856,0.05815529,125.89,125.86,7.949]
[1742560879159,0.05815529,125.89,125.85,20.43027875]
[1742560879460,8.00555529,125.89,125.86,7.9486]
[1742560880158,0.05815529,125.89,125.86,7.9486]
[1742560880456,40.8605575,125.88,125.77,132.07836015]
[1742560880657,6.2339,125.87,125.77,132.07836015]
[1742560880955,20.43027875,125.84,125.77,132.07836015]
[1742560881158,33.62,125.83,125.77,132.07836015]
[1742560881360,20.43027875,125.8,125.77,132.07836015]
[1742560881557,20.43027875,125.8,125.77,108.52952882]
[1742560881763,20.43027875,125.8,125.77,100.12352882]
[1742560881959,20.43027875,125.78,125.77,100.12352882]
[1742560882257,28.38447875,125.78,125.77,100.12352882]
[1742560882569,7.9542,125.78,125.77,20.77898132]
[1742560882757,0.0538211,125.81,125.77,20.77898132]
[1742560883254,8.0064211,125.81,125.77,20.77898132]
[1742560883450,0.0538211,125.81,125.77,20.77898132]
[1742560885067,0.0538211,125.81,125.77,41.20926007]
[1742560885454,0.0538211,125.81,125.77,28.38477875]
[1742560885675,0.0538211,125.81,125.8,20.43027875]
[1742560885861,18.86728213,125.84,125.75,4.2952]
[1742560886054,10.91658213,125.84,125.79,20.48826807]
[1742560886455,10.91658213,125.84,125.81,20.43027875]
[1742560886688,10.91658213,125.84,125.83,20.43027875]
[1742560886892,7.59188213,125.84,125.83,20.43027875]
[1742560887160,22.73789364,125.85,125.83,20.43027875]
[1742560887358,115.01100443,125.86,125.83,20.43027875]
[1742560887584,130.33689956,125.87,125.85,20.43027875]
[1742560887772,275.62317299,125.89,125.85,282.67027875]
[1742560887971,32.50784293,125.89,125.87,20.43027875]
[1742560888459,29.23475391,125.89,125.87,20.43027875]
[1742560888656,86.68758116,125.9,125.88,20.43027875]
[1742560888853,51.98702301,125.9,125.89,7.9472]
[1742560889054,130.03137174,125.91,125.88,20.43027875]
[1742560889251,130.03137174,125.91,125.9,20.43027875]
[1742560889661,113.46407174,125.91,125.9,20.43027875]
[1742560889869,38.00340247,125.91,125.9,28.37027875]
[1742560890171,13.91242962,125.92,125.9,48.8005575]
[1742560890372,249.79837299,125.94,125.91,262.2]
[1742560890586,2.0784,126.04,125.97,7.9421]
[1742560890766,4.2693,126.08,125.98,282.63027875]
[1742560891060,6.4297,126.08,126.02,20.43027875]
[1742560891265,6.4297,126.08,126.01,32.63218147]
[1742560891766,0.06050153,126.06,126.04,0.05960693]
[1742560891968,0.06050153,126.06,126.04,262.25960693]
[1742560892763,7.99700153,126.06,126.05,284.863205]
[1742560892982,7.99700153,126.06,126.05,274.896905]
[1742560893672,15.93700153,126.06,126.05,121.425505]
[1742560893866,7.9371,126.05,126.04,6.93e-06]
[1742560894067,40.632683,126.06,125.99,262.1]
[1742560894267,30.0781073,126.04,126.02,217.67969763]
[1742560894474,30.0781073,126.04,125.95,2.1015]
[1742560894672,32.63218147,126.02,125.95,2.1015]
[1742560894867,32.63218147,126.02,126.0,8.35066137]
[1742560895368,22.84766182,126.02,125.89,262.1]
[1742560895566,32.63218147,125.99,125.91,2.1015]
[1742560895879,32.63218147,126.01,125.94,0.05159035]
[1742560896059,0.05714847,125.96,125.94,0.05159035]
[1742560896267,32.63218147,126.05,125.95,262.1]
[1742560896663,7.9385,126.03,125.96,7.9424]
[1742560896871,32.63218147,126.01,125.95,262.1]
[1742560897370,0.05999738,125.99,125.95,262.1]
[1742560897573,0.05999738,125.99,125.97,0.05808914]
[1742560898666,8.00089738,125.99,125.97,0.05808914]
[1742560898864,0.05999738,125.99,125.97,0.05808914]
[1742560899874,32.69217885,125.99,125.91,2.1015]
[1742560900081,32.63218147,125.97,125.91,2.1015]
[1742560900380,7.9437,125.95,125.91,2.1015]
[1742560900681,32.63218147,125.97,125.91,2.1015]
[1742560900992,7.9438,125.95,125.91,2.1015]
[1742560901182,0.06068646,125.95,125.93,0.05796669]
[1742560901585,32.63218147,126.03,125.93,0.05796669]
[1742560901780,262.08,126.04,125.93,0.05796669]
[1742560901978,7.9398,126.01,125.93,2.1801]
[1742560902181,262.08,126.04,125.94,32.63218147]
[1742560902579,7.9402,126.01,125.94,32.63218147]
[1742560902775,262.08,126.04,125.96,7.9426]
[1742560903074,0.05906563,126.0,125.98,0.05161578]
[1742560904476,7.99936563,126.0,125.98,0.05161578]
[1742560905082,0.05906563,126.0,125.98,0.05161578]
[1742560905274,0.05906563,126.0,125.98,7.99311578]
[1742560905785,0.05906563,126.0,125.99,7.9409]
[1742560906287,0.05906563,126.0,125.98,0.05161578]
[1742560907287,0.05906563,126.0,125.93,2.1801]
[1742560907782,0.05906563,126.0,125.94,32.63218147]
[1742560907975,0.05906563,126.0,125.93,2.1801]
[1742560908476,0.05906563,126.0,125.95,0.05412932]
[1742560908980,0.05906563,126.0,125.97,7.9421]
[1742560909282,7.99936563,126.0,125.95,0.05412932]
[1742560909877,0.05906563,126.0,125.95,0.05412932]
[1742560910482,7.9419,125.98,125.95,0.05412932]
[1742560910684,0.05906563,126.0,125.95,0.05412932]
[1742560910885,7.9428,125.96,125.95,0.05412932]
[1742560911387,7.99741266,125.97,125.95,0.05412932]
[1742560912087,7.99741266,125.97,125.93,7.9443]
[1742560912285,7.9428,125.96,125.91,266.3428]
[1742560912588,0.05491266,125.97,125.91,266.3428]
[1742560912980,0.05491266,125.97,125.93,7.9443]
[1742560913183,0.05491266,125.97,125.93,8.00190116]
[1742560913381,7.99751266,125.97,125.93,8.00190116]
[1742560913577,7.99751266,125.97,125.94,7.944]
[1742560913777,0.05491266,125.97,125.93,0.05760116]
[1742560914181,0.05491266,125.97,125.96,7.9428]
[1742560914988,7.9409,126.0,125.97,7.9418]
[1742560915188,361.0,126.04,125.98,2.023]
[1742560915380,102.25845012,126.07,125.98,2.023]
[1742560916178,7.9401,126.01,126.0,0.05383084]
[1742560920291,0.05548971,126.03,126.0,0.05383084]
[1742560920693,7.9396,126.01,126.0,0.05383084]
[1742560921090,7.9396,126.01,126.0,3.084e-05]
[1742560921286,7.94,126.01,125.93,2.0171]
[1742560921486,32.63218147,125.99,125.93,2.0171]
[1742560921994,7.944,125.95,125.93,2.0171]
[1742560922191,32.63218147,125.97,125.91,264.2413]
[1742560922386,7.9466,125.9,125.89,2.1443]
[1742560923193,7.9472,125.89,125.88,0.05058893]
[1742560923393,0.05307576,125.91,125.85,2.1443]
[1742560923586,0.05307576,125.91,125.87,0.05378193]
[1742560923787,32.63218147,125.93,125.87,0.05378193]
[1742560924088,7.9478,125.88,125.87,0.05378193]
[1742560924698,0.06063998,125.9,125.87,0.05378193]
[1742560925492,32.5280814,125.91,125.88,7.9472]
[1742560925694,32.5280814,125.91,125.89,2.063]
[1742560926096,32.5280814,125.91,125.89,10.0099]
[1742560926301,294.33060632,125.95,125.89,2.063]
[1742560926302,33.8241814,125.95,125.89,2.063]
[1742560926500,25.8802814,125.95,125.89,34.69518147]
[1742560926801,0.05118174,125.93,125.91,0.05686198]
[1742560930601,0.05118174,125.93,125.91,8.00246198]
[1742560930899,0.05118174,125.93,125.91,0.05686198]
[1742560932105,0.05118174,125.93,125.92,7.9453]
[1742560932600,0.05118174,125.93,125.91,8.00256198]
[1742560932904,0.05118174,125.93,125.91,0.05686198]
[1742560933096,7.99628174,125.93,125.91,0.05686198]
[1742560933297,0.05118174,125.93,125.91,0.05686198]
[1742560933803,7.9453,125.92,125.91,0.05686198]
[1742560936199,0.05118174,125.93,125.91,0.05686198]
[1742560936809,7.9453,125.92,125.91,0.05686198]
[1742560937309,0.05118174,125.93,125.86,2.1473]
[1742560937310,7.9482,125.88,125.86,2.1473]
[1742560937499,0.05118174,125.93,125.86,2.1473]
[1742560937805,86.38595012,125.94,125.86,10.0961]
[1742560938106,86.38595012,125.94,125.86,2.1473]
[1742560938305,26.20301587,125.92,125.86,2.1473]
[1742560938504,0.05527785,125.91,125.89,0.05358756]
[1742560939206,7.9466,125.9,125.89,0.05358756]
[1742560940294,8.00147785,125.91,125.89,0.05358756]
[1742560940499,0.05527785,125.91,125.89,0.05358756]
[1742560940906,7.9466,125.9,125.89,0.05358756]
[1742560942802,7.9466,125.9,125.89,8.756e-05]
[1742560944007,8.00157785,125.91,125.89,8.756e-05]
[1742560944210,0.05527785,125.91,125.89,8.756e-05]
[1742560944608,8.00147785,125.91,125.89,8.756e-05]
[1742560945305,0.05527785,125.91,125.89,7.94718756]
[1742560945703,0.05527785,125.91,125.89,8.756e-05]
[1742560945909,8.00157785,125.91,125.89,8.756e-05]
[1742560946105,0.05527785,125.91,125.89,8.756e-05]
[1742560946304,86.38595012,125.96,125.89,8.756e-05]
[1742560946616,7.9438,125.95,125.92,7.9453]
[1742560946910,86.38595012,125.96,125.94,7.9437]
[1742560947107,86.38595012,125.96,125.91,32.63218147]
[1742560947305,69.76745012,125.96,125.93,32.63218147]
[1742560947505,66.44405012,125.96,125.95,7.9434]
[1742560947704,66.50145076,125.96,125.95,7.9434]
[1742560947906,66.50145076,125.96,125.94,7.9437]
[1742560948208,66.50145076,125.96,125.93,32.63218147]
[1742560948209,0.05740064,125.96,125.92,262.25287691]
[1742560948709,0.05740064,125.96,125.94,7.9438]
[1742560949109,0.05740064,125.96,125.92,262.25287691]
[1742560949808,7.9438,125.95,125.92,270.19787691]
[1742560950208,0.05740064,125.96,125.92,270.19787691]
[1742560950509,0.05740064,125.96,125.92,262.25287691]
[1742560951013,7.9437,125.95,125.92,270.19767691]
[1742560951311,0.05740064,125.96,125.92,262.25287691]
[1742560953007,0.05740064,125.96,125.92,0.05287691]
[1742560953208,7.9447,125.93,125.92,0.05287691]
[1742560954911,2.0225,125.95,125.92,0.05287691]
[1742560955110,0.05740064,125.96,125.92,0.05287691]
[1742560955312,0.05740064,125.96,125.95,7.9434]
[1742560955512,0.05740064,125.96,125.92,6.33467691]
[1742560955903,8.00050064,125.96,125.92,6.33467691]
[1742560956114,0.05740064,125.96,125.92,6.33467691]
[1742560956913,0.05740064,125.96,125.94,7.9436]
[1742560957112,0.05740064,125.96,125.92,6.33467691]
[1742560958214,0.05740064,125.96,125.94,7.9437]
[1742560958617,0.05740064,125.96,125.92,6.33467691]
[1742560958804,0.05740064,125.96,125.93,32.63218147]
[1742560959010,0.05740064,125.96,125.93,294.73218147]
[1742560959411,43.71642984,126.02,125.95,32.63218147]
[1742560960413,7.9399,126.01,125.97,7.9417]
[1742560960623,0.05429212,126.0,125.97,0.0530026]
[1742560960918,0.05429212,126.0,125.99,7.9409]
[1742560961320,0.05429212,126.0,125.98,4.2803]
[1742560962210,0.05429212,126.0,125.98,12.2215]
[1742560962721,0.05429212,126.0,125.98,4.2803]
[1742560963219,0.05429212,126.0,125.98,2.149]
[1742560964217,0.05429212,126.0,125.99,7.9409]
[1742560964518,10.91146906,126.07,126.03,7.938]
[1742560964713,10.91146906,126.07,126.0,2.0708]
[1742560965319,10.91146906,126.07,125.99,327.30436294]
[1742560965320,10.91146906,126.07,125.99,262.04]
[1742560965516,0.06021571,126.05,126.02,0.05024569]
[1742560966021,7.9387,126.03,126.02,0.05024569]
[1742560968727,7.9403,126.0,125.99,262.04]
[1742560969022,32.63218147,126.04,125.95,7.9431]
[1742560969225,7.9415,125.99,125.95,7.9431]
[1742560969418,7.9415,125.99,125.94,264.0919]
[1742560969624,32.63218147,126.04,125.97,7.9419]
[1742560969823,32.63218147,126.04,125.94,264.0919]
[1742560970021,0.05589255,126.02,125.99,0.05062533]
[1742560970616,0.05589255,126.02,126.0,7.9403]
[1742560970817,0.05589255,126.02,125.99,0.05062533]
[1742560971215,0.05589255,126.02,126.01,7.9396]
[1742560971820,0.05589255,126.02,125.99,0.05062533]
[1742560973832,0.05589255,126.02,126.01,7.9396]
[1742560975122,0.05589255,126.02,126.0,10.1424]
[1742560975716,0.05589255,126.02,126.0,2.2024]
[1742560975927,0.05589255,126.02,126.01,7.9396]
[1742560976519,7.9368,126.06,126.03,7.9383]
[1742560976929,2.0521,126.09,126.03,7.9383]
[1742560977323,7.9371,126.05,126.02,7.9387]
[1742560977627,12.96356906,126.09,126.0,264.1824]
[1742560977823,0.05130007,126.05,126.02,0.05288687]
[1742560978424,0.05130007,126.05,126.0,261.98]
[1742560978629,0.05130007,126.05,125.96,4.055]
[1742560978825,32.63218147,126.06,125.96,4.055]
[1742560979129,7.9401,126.01,125.98,7.941]
[1742560979332,7.9401,126.01,125.96,4.055]
[1742560979526,7.9401,126.01,125.99,7.9406]
[1742560979731,0.05665154,126.0,125.99,7.9406]
[1742560980031,7.9393,126.02,125.96,4.055]
[1742560980231,0.05437967,126.01,126.0,7.9398]
[1742560980431,7.9379,126.04,125.96,4.055]
[1742560980631,0.05133282,126.02,126.0,7.9398]
[1742560980833,76.34861131,126.08,126.0,7.9398]
[1742560981027,0.05112927,126.02,126.0,0.05814094]
[1742560981227,32.63218147,126.06,125.99,7.9406]
[1742560981433,7.99393482,126.02,126.0,0.05860058]
[1742560981629,0.05483482,126.02,126.0,0.05860058]
[1742560981828,7.9396,126.01,126.0,0.05860058]
[1742560983831,0.05483482,126.02,126.0,0.05860058]
[1742560984037,0.05483482,126.02,126.01,7.9396]
[1742560984227,0.05483482,126.02,126.0,0.05860058]
[1742560984832,7.99413482,126.02,126.0,0.05860058]
[1742560985333,0.05483482,126.02,126.0,0.05860058]
[1742560985521,7.9396,126.01,126.0,0.05860058]
[1742560988933,7.9411,125.99,125.95,261.94]
[1742560989635,7.9406,126.0,125.95,261.94]
[1742560989843,4.3229,126.04,125.95,294.57218147]
[1742560990137,0.05268377,126.01,126.0,7.94]
[1742560990539,10.91146906,126.05,125.96,4.3407]
[1742560990835,0.05923563,126.02,126.0,7.9398]
[1742560991032,0.05923563,126.02,125.99,0.05046058]
[1742560991438,7.99833563,126.02,126.0,7.9399]
[1742560991638,0.05923563,126.02,126.0,7.9399]
[1742560992638,0.05923563,126.02,125.99,0.05046058]
[1742560993840,0.05923563,126.02,126.0,7.94]
[1742560994340,0.05923563,126.02,125.99,0.05046058]
[1742560994836,7.99853563,126.02,125.99,0.05046058]
[1742560995042,0.05923563,126.02,125.99,0.05046058]
[1742560995443,7.9399,126.01,125.99,0.05046058]
[1742560995843,7.9399,126.01,125.99,30.05046058]
[1742560996231,7.9403,126.0,125.99,30.05046058]
[1742560997433,33.94890433,126.0,125.99,30.05046058]
[1742560999043,44.86037339,126.0,125.99,30.05046058]
[1742561000437,33.94890433,126.0,125.99,30.05046058]
[1742561001445,26.00860433,126.0,125.99,30.05046058]
[1742561001837,33.94890433,126.0,125.99,30.05046058]
[1742561003547,10.91146906,126.01,125.99,30.05046058]
[1742561004251,18.85116906,126.01,125.99,30.05046058]
[1742561004449,10.91146906,126.01,125.99,30.05046058]
[1742561004850,10.97070469,126.02,125.99,30.05046058]
[1742561005057,7.94,126.01,125.99,30.05046058]
[1742561005257,10.97070469,126.02,125.99,30.05046058]
[1742561005654,7.9403,126.0,125.99,30.05046058]
[1742561010161,44.8673524,126.0,125.99,30.05046058]
[1742561010959,44.8673524,126.0,125.99,30.0]
[1742561011159,44.8673524,126.0,125.95,261.94]
[1742561011160,36.9270524,126.0,125.92,4.1423]
[1742561011363,38.9425524,126.0,125.92,4.1423]
[1742561011665,20.42697125,125.99,125.92,12.0872]
[1742561012054,7.9444,125.94,125.92,4.1423]
[1742561012462,144.30044762,126.0,125.92,4.19987907]
[1742561012654,0.05072779,125.94,125.92,4.1423]
[1742561012861,168.93951887,126.0,125.95,0.05089288]
[1742561013061,20.42697125,125.98,125.91,7.9456]
[1742561013259,7.9446,125.94,125.91,7.9456]
[1742561013459,7.9446,125.94,125.93,0.05626574]
[1742561013659,7.99874418,125.94,125.93,0.05626574]
[1742561014062,0.05414418,125.94,125.93,0.05626574]
[1742561014663,0.05414418,125.94,125.93,8.00096574]
[1742561016360,43.78995176,126.0,125.96,7.9427]
[1742561016563,43.78995176,126.0,125.93,20.42697125]
[1742561016868,64.21692301,126.0,125.92,7.945]
[1742561017267,7.9436,125.95,125.92,7.945]
[1742561017467,0.05654732,125.97,125.95,0.06086393]
[1742561017665,20.42697125,125.98,125.91,7.9456]
[1742561017865,0.05529569,125.97,125.93,7.9442]
[1742561018065,0.05529569,125.97,125.93,7.99739895]
[1742561018269,0.05529569,125.97,125.93,0.05319895]
[1742561018462,7.9441,125.94,125.93,0.05319895]
[1742561020666,68.93059569,125.97,125.93,0.05319895]
[1742561021066,112.72054745,125.97,125.93,0.05319895]
[1742561022068,43.84524745,125.97,125.93,0.05319895]
[1742561022767,7.9441,125.94,125.93,0.05319895]
[1742561028580,7.9441,125.94,125.86,64.3425]
[1742561028581,48.7939425,125.94,125.76,20.42697125]
[1742561028775,20.42697125,125.88,125.78,286.85447125]
[1742561028977,82.54697125,125.88,125.78,286.85447125]
[1742561029178,2.2056,125.87,125.78,286.85447125]
[1742561029476,4.2263,125.87,125.81,7.9519]
[1742561029674,7.9511,125.83,125.78,286.85447125]
[1742561029981,4.2263,125.87,125.79,0.05393459]
[1742561030170,0.05015926,125.82,125.81,7.9521]
[1742561030578,0.05223228,125.83,125.8,20.48233095]
[1742561031180,0.05223228,125.83,125.82,7.9511]
[1742561031377,62.12,125.88,125.82,20.42697125]
[1742561031575,13.05868794,125.9,125.82,20.42697125]
[1742561031780,7.9476,125.89,125.85,7.9496]
[1742561032480,0.05719547,125.88,125.86,0.05317711]
[1742561033075,8.00509547,125.88,125.86,0.05317711]
[1742561033477,0.05719547,125.88,125.86,0.05317711]
[1742561034479,20.48416672,125.88,125.86,0.05317711]
[1742561034680,7.9485,125.87,125.86,0.05317711]
[1742561037584,67.9485,125.87,125.86,0.05317711]
[1742561038478,67.94,125.87,125.73,15.9141]
[1742561038673,60.0,125.87,125.82,7.9511]
[1742561038878,60.0,125.87,125.78,20.42697125]
[1742561039579,0.05956794,125.84,125.81,0.05480285]
[1742561040581,8.01026794,125.84,125.81,8.00680285]
[1742561040776,0.05956794,125.84,125.81,0.05480285]
[1742561042676,7.9516,125.82,125.81,0.05480285]
[1742561043282,0.05956794,125.84,125.81,0.05480285]
[1742561043878,7.9511,125.83,125.81,0.05480285]
[1742561044385,0.05956794,125.84,125.81,8.00680285]
[1742561044591,8.01026794,125.84,125.81,8.00680285]
[1742561044886,8.01026794,125.84,125.82,7.9513]
[1742561045090,0.05956794,125.84,125.82,7.9513]
[1742561045388,0.05956794,125.84,125.82,7.9512]
[1742561045587,8.01026794,125.84,125.81,0.05480285]
[1742561046082,0.05956794,125.84,125.81,0.05480285]
[1742561047090,0.05956794,125.84,125.83,7.951]
[1742561048493,43.78995176,125.89,125.83,20.42697125]
[1742561048695,7.9479,125.88,125.83,20.42697125]
[1742561048885,7.9479,125.88,125.85,7.9492]
[1742561049288,7.9479,125.88,125.83,20.42697125]
[1742561049590,43.78995176,125.89,125.85,20.42697125]
[1742561049793,0.05956176,125.87,125.84,0.05969118]
[1742561050488,7.9494,125.86,125.84,0.05969118]
[1742561050894,0.05956176,125.87,125.84,0.05969118]
[1742561051096,0.05956176,125.87,125.85,7.9494]
[1742561051896,0.05956176,125.87,125.84,0.05969118]
[1742561052383,0.05956176,125.87,125.85,7.9496]
[1742561052894,0.05956176,125.87,125.86,7.9491]
[1742561053291,0.05956176,125.87,125.84,0.05969118]
[1742561053693,8.00806176,125.87,125.85,7.9494]
[1742561053895,0.05956176,125.87,125.85,7.9494]
[1742561054393,0.05956176,125.87,125.86,7.9491]
[1742561054594,0.05956176,125.87,125.84,0.05969118]
[1742561054794,0.05956176,125.87,125.85,7.9495]
[1742561055098,0.05956176,125.87,125.84,0.05969118]
[1742561055586,0.05956176,125.87,125.85,7.9497]
[1742561055787,0.05956176,125.87,125.84,0.05969118]
[1742561056192,0.05956176,125.87,125.86,7.9491]
[1742561058598,0.05956176,125.87,125.84,2.77449118]
[1742561058599,43.78995176,125.91,125.85,20.42697125]
[1742561058802,43.78995176,125.91,125.9,7.9466]
[1742561059098,43.78995176,125.91,125.9,28.37357125]
[1742561059298,43.78995176,125.91,125.9,7.9466]
[1742561059700,43.78995176,125.95,125.92,7.9453]
[1742561060096,43.84268244,125.95,125.88,75.60697125]
[1742561060291,43.84268244,125.95,125.92,0.05841044]
[1742561061195,43.84268244,125.95,125.92,8.00331044]
[1742561061998,43.84268244,125.95,125.93,7.9445]
[1742561062201,0.05273068,125.95,125.93,7.9445]
[1742561062603,0.05273068,125.95,125.92,0.05841044]
[1742561063104,0.05273068,125.95,125.92,8.00371044]
[1742561063404,0.05273068,125.95,125.92,0.05841044]
[1742561064506,0.05273068,125.95,125.93,7.9446]
[1742561065605,7.99623068,125.95,125.92,8.00341044]
[1742561066106,0.05273068,125.95,125.92,20.48538169]
[1742561066407,0.05273068,125.95,125.94,7.9441]
[1742561066896,18.88868794,125.99,125.96,7.9425]
[1742561067097,18.88868794,125.99,125.94,20.42697125]
[1742561067297,7.9412,125.99,125.94,20.42697125]
[1742561067497,7.9412,125.99,125.96,7.9422]
[1742561068106,8.00224771,125.99,125.96,8.00109876]
[1742561068296,7.9419,125.98,125.96,0.05889876]
[1742561068612,0.06104771,125.99,125.96,0.05889876]
[1742561068995,7.9422,125.97,125.96,0.05889876]
[1742561074095,0.06104771,125.99,125.96,0.05889876]
[1742561075006,0.06104771,125.99,125.97,7.9418]
[1742561075805,0.06104771,125.99,125.98,7.9415]
[1742561076111,0.06104771,125.99,125.96,0.05889876]
[1742561076303,0.06104771,125.99,125.96,20.48587001]
[1742561077199,0.06104771,125.99,125.98,7.9415]
[1742561077608,0.06104771,125.99,125.96,20.48587001]
[1742561077807,0.06104771,125.99,125.97,7.9416]
[1742561078609,0.06104771,125.99,125.96,20.48587001]
[1742561079105,0.06104771,125.99,125.98,7.9415]
[1742561079705,0.06104771,125.99,125.97,7.9418]
[1742561080107,8.00194771,125.99,125.97,7.9418]
[1742561080901,0.06104771,125.99,125.96,20.48587001]
[1742561081102,0.06104771,125.99,125.96,0.05889876]
[1742561081306,7.9419,125.98,125.96,0.05889876]
[1742561081898,8.00214771,125.99,125.96,0.05889876]
[1742561082101,0.06104771,125.99,125.96,20.48587001]
[1742561082509,0.06104771,125.99,125.97,7.9417]
[1742561083901,8.00194771,125.99,125.97,7.9417]
[1742561084202,8.00194771,125.99,125.96,28.42837001]
[1742561084609,8.00194771,125.99,125.97,7.9421]
[1742561085511,0.06104771,125.99,125.96,20.48587001]
[1742561086007,0.06104771,125.99,125.98,7.9415]
[1742561086209,0.06104771,125.99,125.98,20.42697125]
[1742561088812,8.00204771,125.99,125.97,20.42697125]
[1742561090206,0.06104771,125.99,125.97,20.42697125]
[1742561090601,0.06104771,125.99,125.97,28.36907125]
[1742561091008,0.06104771,125.99,125.97,20.42697125]
[1742561091210,0.06104771,125.99,125.97,28.36867125]
[1742561092111,8.00224771,125.99,125.97,28.36867125]
[1742561092711,7.9415,125.98,125.97,20.42697125]
[1742561092913,0.06104771,125.99,125.96,0.05889876]
[1742561093110,0.06104771,125.99,125.96,13.12906454]
[1742561093310,7.9419,125.98,125.96,13.12906454]
[1742561093709,0.06104771,125.99,125.96,13.12906454]
[1742561094107,7.9419,125.98,125.96,21.07186454]
[1742561094812,8.00234771,125.99,125.96,21.07186454]
[1742561095014,43.78995176,125.98,125.96,21.07186454]
[1742561095313,43.78995176,125.98,125.97,13.07016578]
[1742561095608,43.78995176,125.98,125.97,21.01236578]
[1742561096113,43.78995176,125.98,125.97,13.07016578]
[1742561096914,43.78995176,125.98,125.97,21.01236578]
[1742561097117,43.85099947,125.99,125.97,13.07016578]
[1742561097413,43.85099947,125.99,125.98,13.07016578]
[1742561098213,43.85099947,125.99,125.98,21.01166578]
[1742561099114,98.98308608,125.99,125.98,21.01166578]
[1742561102218,37.04715352,125.99,125.98,21.01166578]
[1742561103117,37.04715352,125.99,125.96,13.12906454]
[1742561103317,37.04715352,125.99,125.98,13.07016578]
[1742561103625,0.06104771,125.99,125.98,21.01166578]
[1742561106920,72.93912086,126.0,125.99,7.9409]
[1742561107126,129.65505141,126.02,126.0,13.07016578]
[1742561107321,129.65505141,126.02,126.01,13.07016578]
[1742561107718,129.65505141,126.02,126.01,21.00976578]
[1742561109215,26.08986599,126.02,126.01,21.00976578]
[1742561110925,26.08986599,126.02,126.01,13.07016578]
[1742561112324,0.0509056,126.03,126.01,13.07016578]
[1742561112627,0.0509056,126.03,126.02,13.07016578]
[1742561113732,0.0509056,126.03,126.02,21.00916578]
[1742561131040,7.9368,126.06,126.04,7.9377]
[1742561131249,528.75735616,126.1,126.05,57.13016578]
[1742561131543,536.83085616,126.1,126.07,13.07016578]
[1742561131746,536.83085616,126.1,126.06,13.07016578]
[1742561132449,0.05792307,126.09,126.07,7.98760198]
[1742561133949,0.05792307,126.09,126.07,0.05200198]
[1742561134350,0.05792307,126.09,126.08,7.9352]
[1742561136449,0.05792307,126.09,126.08,21.00536578]
[1742561145255,0.05792307,126.09,126.08,7.9352]
[1742561145756,0.05792307,126.09,126.08,21.00536578]
[1742561150465,10.7436,126.14,126.11,7.9333]
[1742561150661,10.7436,126.14,126.11,21.00346578]
[1742561151571,10.80444639,126.14,126.11,21.05880305]
[1742561152567,0.06084639,126.14,126.11,13.12550305]
[1742561152764,13.13101217,126.14,126.11,0.05533727]
[1742561153069,13.07016578,126.12,126.07,13.07016578]
[1742561153770,13.07016578,126.13,126.08,13.07016578]
[1742561154162,0.05882347,126.12,126.11,7.933]
[1742561155172,0.05882347,126.12,126.11,21.00316578]
[1742561156973,0.05882347,126.12,126.11,7.933]
[1742561157163,0.05882347,126.12,126.11,21.00316578]
[1742561161272,54.65016578,126.18,126.15,7.9302]
[1742561161571,54.65016578,126.18,126.14,13.07016578]
[1742561161771,62.57936578,126.18,126.16,7.9301]
[1742561162472,13.07016578,126.17,126.1,13.07016578]
[1742561162667,13.07016578,126.15,126.1,13.07016578]
[1742561163173,21.00136578,126.15,126.11,7.933]
[1742561163763,0.05156871,126.14,126.12,7.98347687]
[1742561164063,0.05156871,126.14,126.12,0.05087687]
[1742561164971,7.98316871,126.14,126.12,0.05087687]
[1742561165165,13.07016578,126.13,126.12,0.05087687]
[1742561165570,13.07016578,126.13,126.07,13.07016578]
[1742561165765,7.9335,126.11,126.08,7.9349]
[1742561166174,53.75016578,126.12,126.07,13.07016578]
[1742561166377,13.07016578,126.11,126.06,13.07016578]
[1742561166672,0.05953413,126.1,126.07,0.05565355]
[1742561167572,7.99383413,126.1,126.07,0.05565355]
[1742561168368,13.07016578,126.09,126.07,0.05565355]
[1742561168771,13.07016578,126.08,126.07,0.05565355]
[1742561169272,7.9352,126.08,126.07,0.05565355]